bitfinex/quotes_SOLUSD_20260309
["timestamp","ask_amount","ask_price","bid_price","bid_amount"]
[1773059402372,0.74037281,83.976,83.952,12.67965905]
[1773059402675,0.74037281,84.007,83.96,4.36029275]
[1773059402885,0.74037281,83.999,83.96,4.36029275]
[1773059403171,0.75239427,83.989,83.951,11.9117104]
[1773059403379,0.75239427,83.989,83.953,0.77882024]
[1773059404664,0.75239427,83.989,83.946,12.69111617]
[1773059404866,0.75239427,83.987,83.95,4.36029275]
[1773059405274,0.75239427,83.987,83.948,0.77882024]
[1773059405477,0.75239427,83.979,83.948,0.77882024]
[1773059407284,0.75239427,83.977,83.931,0.77882024]
[1773059407468,0.75239427,83.977,83.941,0.77882024]
[1773059408685,0.75239427,83.969,83.931,0.77882024]
[1773059409266,0.75239427,83.975,83.943,0.77882024]
[1773059409465,0.75239427,83.975,83.942,11.91298753]
[1773059409466,0.75239427,83.982,83.951,0.77882024]
[1773059409678,0.75239427,83.992,83.961,0.77882024]
[1773059409864,0.75239427,83.992,83.97,4.36029275]
[1773059410061,0.75239427,84.004,83.981,0.77882024]
[1773059410291,12.65673101,84.003,83.981,0.77882024]
[1773059410486,12.65673101,84.003,83.956,0.28432314]
[1773059410487,0.75239427,84.002,83.971,0.77882024]
[1773059410692,0.75239427,84.002,83.97,4.36029275]
[1773059410872,0.75239427,84.002,83.971,0.77882024]
[1773059411370,0.75239427,84.0,83.972,12.68755172]
[1773059412494,0.75239427,84.0,83.972,0.77882024]
[1773059412782,0.75239427,84.0,83.971,11.9088733]
[1773059413089,0.75239427,84.0,83.971,12.68769354]
[1773059413267,0.75239427,83.998,83.967,11.90942642]
[1773059413470,0.75239427,83.998,83.96,4.36029275]
[1773059413679,0.1,84.02,83.96,4.36029275]
[1773059413680,0.75239427,84.008,83.981,0.77882024]
[1773059414388,0.75239427,84.007,83.974,0.77882024]
[1773059414970,0.75239427,84.007,83.97,4.36029275]
[1773059414971,0.75239427,83.999,83.961,0.77882024]
[1773059415374,0.75239427,83.989,83.943,0.77882024]
[1773059415574,0.75239427,83.989,83.95,4.36029275]
[1773059415776,0.75239427,83.989,83.951,0.77882024]
[1773059415979,0.75239427,83.996,83.961,0.77882024]
[1773059417189,0.75239427,83.989,83.946,11.91241467]
[1773059417373,0.75239427,83.987,83.951,0.77882024]
[1773059417773,0.75239427,83.979,83.947,0.77882024]
[1773059418174,0.75239427,83.979,83.941,0.77882024]
[1773059418975,0.75239427,83.979,83.94,4.36029275]
[1773059419186,0.75239427,83.979,83.935,11.91398105]
[1773059419497,0.75239427,83.977,83.936,0.77882024]
[1773059420676,0.75239427,83.969,83.93,4.36029275]
[1773059420901,0.75239427,83.969,83.931,0.77882024]
[1773059421798,0.75239427,83.967,83.933,0.77882024]
[1773059422199,0.75239427,83.967,83.93,4.35982006]
[1773059422407,0.75239427,83.967,83.931,0.77882024]
[1773059423592,0.75239427,83.967,83.93,4.35982006]
[1773059423794,0.75239427,83.959,83.926,0.77882024]
[1773059423979,0.75239427,83.939,83.911,0.77882024]
[1773059425595,0.75239427,83.937,83.912,11.91724663]
[1773059425779,0.75239427,83.937,83.913,0.77882024]
[1773059426206,0.75239427,83.937,83.9,0.77882024]
[1773059426502,0.75239427,83.929,83.899,11.91909319]
[1773059426997,0.75239427,83.929,83.91,4.35982006]
[1773059428502,0.75239427,83.929,83.909,0.77882024]
[1773059428798,4.35982006,83.94,83.9,4.35982006]
[1773059428799,0.75239427,83.927,83.902,0.77882024]
[1773059428995,3.69383402,83.925,83.882,0.79711455]
[1773059429199,4.35982006,83.91,83.882,0.79711455]
[1773059429698,4.35982006,83.92,83.882,0.79711455]
[1773059430580,41.70688401,83.919,83.882,0.79711455]
[1773059430790,4.35982006,83.91,83.882,0.79711455]
[1773059431397,4.35982006,83.91,83.883,0.79711455]
[1773059431589,11.69466588,83.91,83.883,0.79711455]
[1773059432904,11.91497474,83.928,83.891,0.79711455]
[1773059433113,11.91497474,83.928,83.901,0.79711455]
[1773059434200,11.91497474,83.928,83.903,0.79711455]
[1773059435118,11.91497474,83.928,83.881,0.28432314]
[1773059435119,11.69466588,83.95,83.911,0.79711455]
[1773059435413,11.69466588,83.94,83.911,0.79711455]
[1773059435994,11.69466588,83.94,83.889,0.79711455]
[1773059435995,41.70688401,83.919,83.889,0.79711455]
[1773059436196,11.69466588,83.91,83.889,0.79711455]
[1773059436819,11.69466588,83.91,83.891,0.79711455]
[1773059437601,11.91625257,83.919,83.891,0.79711455]
[1773059437897,11.69466588,83.91,83.891,0.79711455]
[1773059438292,11.69466588,83.92,83.893,0.79711455]
[1773059438495,11.69466588,83.94,83.901,0.79711455]
[1773059440212,11.69466588,83.94,83.902,0.79711455]
[1773059440400,11.69466588,83.95,83.913,1.08143769]
[1773059440602,11.69466588,83.97,83.931,0.79711455]
[1773059440918,11.69466588,83.96,83.931,0.79711455]
[1773059441397,11.93389502,83.968,83.931,0.79711455]
[1773059442213,0.02459624,83.967,83.933,0.79711455]
[1773059444099,0.02921805,83.959,83.93,11.69466588]
[1773059444299,0.03096827,83.958,83.927,11.91511026]
[1773059444814,0.03096827,83.958,83.928,0.79711455]
[1773059445112,11.91057539,83.959,83.931,0.79711455]
[1773059446416,11.69466588,83.97,83.933,0.79711455]
[1773059447720,0.03777106,83.969,83.933,0.79711455]
[1773059448914,0.03940723,83.968,83.935,0.81300564]
[1773059449829,0.03940723,83.968,83.941,0.81300564]
[1773059450010,41.68204932,83.969,83.941,0.81300564]
[1773059452022,41.72629453,83.969,83.941,0.81300564]
[1773059452930,0.04581803,83.968,83.941,0.81300564]
[1773059453308,0.04581803,83.968,83.932,0.81300564]
[1773059454710,0.04581803,83.968,83.934,0.81300564]
[1773059456929,0.04581803,83.968,83.936,0.81300564]
[1773059457133,0.04581803,83.968,83.941,0.81300564]
[1773059457338,11.90915695,83.969,83.941,0.81300564]
[1773059457533,11.90802243,83.977,83.941,0.81300564]
[1773059457724,11.90802243,83.977,83.951,0.81300564]
[1773059459023,0.05489757,83.976,83.951,0.81300564]
[1773059459222,0.05489757,83.976,83.94,4.35997013]
[1773059459223,4.35997013,83.97,83.941,0.81300564]
[1773059459624,0.05489757,83.976,83.941,0.81300564]
[1773059460134,41.67807851,83.977,83.942,0.81300564]
[1773059460334,0.05778338,83.969,83.935,0.81300564]
[1773059460537,4.35997013,83.96,83.935,0.81300564]
[1773059460719,0.05778338,83.962,83.935,0.81300564]
[1773059460921,0.05778338,83.968,83.935,0.81300564]
[1773059461440,11.90915695,83.969,83.941,0.81300564]
[1773059462519,11.90867784,83.973,83.951,0.81300564]
[1773059462713,11.90688813,83.985,83.951,0.81300564]
[1773059463114,11.90688813,83.985,83.961,0.82066514]
[1773059463347,11.90589579,83.992,83.962,11.91014982]
[1773059463631,11.90589579,83.992,83.963,0.82066514]
[1773059463937,11.90589579,83.992,83.962,11.91014982]
[1773059463938,11.90508549,83.998,83.971,0.82066514]
[1773059465526,29.82473285,84.007,83.971,0.82066514]
[1773059465734,0.06505989,84.006,83.971,0.82066514]
[1773059467237,0.06505989,84.006,83.973,0.82066514]
[1773059468322,4.35997013,84.0,83.973,0.82066514]
[1773059468926,0.06902034,83.999,83.96,5.18063527]
[1773059469222,0.06902034,83.999,83.961,0.82066514]
[1773059470338,0.07157652,83.998,83.961,0.82066514]
[1773059471350,41.66716269,83.999,83.961,0.82066514]
[1773059471351,4.35997013,83.98,83.961,0.82066514]
[1773059471839,0.07283331,83.989,83.961,0.82066514]
[1773059472240,0.07283331,83.989,83.951,11.9117104]
[1773059472552,0.78343338,83.979,83.94,4.35997013]
[1773059472741,0.78343338,83.969,83.94,4.35997013]
[1773059472925,0.78343338,83.969,83.932,11.91438511]
[1773059473237,0.78343338,83.979,83.95,4.35997013]
[1773059473439,4.35997013,83.99,83.95,4.35997013]
[1773059473628,11.90532882,83.996,83.96,4.35997013]
[1773059473935,11.90532882,83.996,83.933,0.28432314]
[1773059474139,12.6887622,83.996,83.961,0.82066514]
[1773059475235,12.6887622,83.996,83.963,0.82066514]
[1773059475435,11.90532882,83.996,83.963,0.82066514]
[1773059475636,41.66865088,83.996,83.963,0.82066514]
[1773059475938,0.78343338,83.995,83.963,0.82066514]
[1773059476548,4.35997013,83.99,83.963,0.82066514]
[1773059476845,0.78343338,83.979,83.956,0.82066514]
[1773059477941,11.90788063,83.978,83.956,0.82066514]
[1773059478750,0.78343338,83.977,83.956,0.82066514]
[1773059479448,11.90788063,83.978,83.956,0.82066514]
[1773059480843,0.78343338,83.985,83.958,0.82066514]
[1773059481147,0.78343338,83.979,83.958,0.82066514]
[1773059482527,0.78343338,83.979,83.952,0.82066514]
[1773059482836,0.78343338,83.977,83.949,0.82066514]
[1773059483231,11.90788063,83.978,83.948,11.91213608]
[1773059483232,11.90788063,83.978,83.951,0.82066514]
[1773059484233,11.90788063,83.978,83.96,4.35861665]
[1773059484549,11.90788063,83.978,83.961,0.82066514]
[1773059485538,11.90702991,83.984,83.961,0.82066514]
[1773059485835,0.78343338,83.969,83.937,0.82066514]
[1773059487129,4.35861665,83.96,83.937,0.82066514]
[1773059487448,0.78343338,83.961,83.937,0.82066514]
[1773059487644,11.91043353,83.96,83.939,0.82066514]
[1773059488742,4.35861665,83.97,83.939,0.82066514]
[1773059488948,4.35861665,83.97,83.937,11.91362274]
[1773059488949,0.78343338,83.969,83.941,0.82066514]
[1773059489342,0.78343338,83.968,83.941,0.82066514]
[1773059489643,0.78343338,83.966,83.941,0.82066514]
[1773059490250,0.78343338,83.966,83.943,0.82066514]
[1773059490546,11.90944061,83.967,83.943,0.82066514]
[1773059491349,11.90788063,83.978,83.95,4.35861665]
[1773059491554,11.90788063,83.978,83.951,0.82066514]
[1773059493150,11.90788063,83.978,83.953,0.78736536]
[1773059494340,0.80813356,83.969,83.934,0.78736536]
[1773059495857,0.80813356,83.967,83.934,0.78736536]
[1773059496059,0.80813356,83.967,83.936,0.78736536]
[1773059498658,0.80813356,83.965,83.937,11.91369717]
[1773059498857,59.53444067,83.985,83.937,11.91369717]
[1773059498858,16.26625836,83.98,83.942,0.78736536]
[1773059499062,16.26625836,83.98,83.937,41.69794011]
[1773059499063,16.26625836,83.98,83.951,0.78736536]
[1773059499271,11.90764171,83.98,83.951,0.78736536]
[1773059499648,0.80813356,83.979,83.951,0.78736536]
[1773059500156,0.80813356,83.979,83.937,11.91369717]
[1773059500157,0.80813356,83.969,83.934,0.78736536]
[1773059501150,0.80813356,83.967,83.941,0.78736536]
[1773059501657,11.90929878,83.968,83.941,0.78736536]
[1773059502066,0.80813356,83.967,83.941,0.78736536]
[1773059505465,0.7948257,83.965,83.941,0.78736536]
[1773059505674,11.90958245,83.966,83.941,0.78736536]
[1773059506467,11.90958245,83.966,83.942,0.77841222]
[1773059506660,11.90958245,83.966,83.941,11.91311798]
[1773059506661,4.35861665,83.98,83.95,4.35861665]
[1773059506862,0.7948257,83.984,83.951,0.77841222]
[1773059507368,4.35861665,83.98,83.951,0.77841222]
[1773059507746,4.35861665,83.98,83.952,11.91156851]
[1773059507950,11.90773883,83.979,83.953,0.77841222]
[1773059508458,42.47191162,83.979,83.953,0.77841222]
[1773059508657,0.7948257,83.978,83.953,0.77841222]
[1773059510265,41.67708592,83.979,83.953,0.77841222]
[1773059510266,0.7948257,83.976,83.953,0.77841222]
[1773059510567,29.76934709,83.979,83.953,0.77841222]
[1773059510568,11.90660459,83.987,83.961,0.77841222]
[1773059510958,4.35861665,83.98,83.954,0.77841222]
[1773059512046,0.7948257,83.979,83.946,0.77841222]
[1773059512373,0.7948257,83.969,83.945,11.91244563]
[1773059512858,0.7948257,83.969,83.942,0.77841222]
[1773059515770,0.7948257,83.967,83.942,0.77841222]
[1773059516079,0.7948257,83.967,83.937,0.77841222]
[1773059516560,0.7948257,83.967,83.941,0.77841222]
[1773059517477,11.90929878,83.968,83.941,0.77841222]
[1773059517664,0.7948257,83.967,83.941,0.77841222]
[1773059518276,0.7948257,83.965,83.941,0.77841222]
[1773059518478,0.7948257,83.959,83.928,0.77841222]
[1773059518795,41.68353857,83.966,83.921,0.77841222]
[1773059518796,0.7948257,83.949,83.921,0.77841222]
[1773059519272,0.7948257,83.949,83.915,0.77841222]
[1773059520369,0.7948257,83.929,83.901,0.77841222]
[1773059520563,4.35861665,83.94,83.901,0.77841222]
[1773059520768,11.91213608,83.948,83.921,0.77841222]
[1773059521354,0.7948257,83.947,83.921,0.77841222]
[1773059521681,0.7948257,83.939,83.911,0.77841222]
[1773059522475,11.91355524,83.938,83.911,12.69579754]
[1773059522672,12.70838094,83.938,83.912,0.77841222]
[1773059522979,0.7948257,83.937,83.912,0.77841222]
[1773059524566,12.76421093,83.936,83.912,0.77841222]
[1773059524764,11.91383911,83.936,83.912,0.77841222]
[1773059524972,0.85037182,83.935,83.912,0.77841222]
[1773059525387,0.85037182,83.935,83.904,0.8347966]
[1773059527259,0.85037182,83.933,83.904,11.91828131]
[1773059527463,0.85037182,83.933,83.905,0.8347966]
[1773059529364,0.85037182,83.929,83.905,0.8347966]
[1773059529762,0.85037182,83.929,83.907,0.8347966]
[1773059530973,11.9144069,83.932,83.907,0.8347966]
[1773059531571,0.85037182,83.929,83.901,0.8347966]
[1773059532581,0.85037182,83.919,83.889,0.8347966]
[1773059532787,0.85037182,83.909,83.886,11.92086724]
[1773059532990,0.85037182,83.909,83.855,3.69383402]
[1773059532991,0.85037182,83.899,83.866,0.8347966]
[1773059533290,0.85037182,83.889,83.86,0.1]
[1773059533479,0.85037182,83.879,83.86,0.1]
[1773059533661,4.35861665,83.87,83.85,0.9347966]
[1773059534062,5.20898847,83.87,83.85,0.1]
[1773059534268,4.35861665,83.9,83.861,0.8347966]
[1773059534478,0.85037182,83.903,83.871,0.8347966]
[1773059534682,0.85037182,83.899,83.871,0.8347966]
[1773059534883,0.85037182,83.889,83.862,0.8347966]
[1773059535089,0.85037182,83.889,83.851,0.8347966]
[1773059535673,0.85037182,83.887,83.853,0.8347966]
[1773059535970,41.72229639,83.888,83.85,4.45861665]
[1773059535971,0.85037182,83.879,83.851,12.7607128]
[1773059536180,0.85037182,83.879,83.852,0.8347966]
[1773059536888,12.77102793,83.888,83.852,0.8347966]
[1773059537192,0.85037182,83.887,83.861,0.8347966]
[1773059537886,0.85037182,83.887,83.862,11.92435191]
[1773059538192,4.35861665,83.89,83.863,0.8347966]
[1773059538193,11.92094032,83.886,83.863,0.8347966]
[1773059539266,0.85037182,83.885,83.856,0.8347966]
[1773059539474,0.85037182,83.879,83.85,0.1]
[1773059540000,0.85037182,83.877,83.85,0.1]
[1773059540677,0.85037182,83.877,83.851,0.8347966]
[1773059541486,0.85037182,83.877,83.85,0.1]
[1773059541487,4.35861665,83.87,83.85,0.1]
[1773059541690,0.85037182,83.877,83.85,0.1]
[1773059542072,41.72727055,83.878,83.85,0.1]
[1773059542073,0.85037182,83.875,83.85,0.1]
[1773059543096,0.85037182,83.875,83.85,0.9347966]
[1773059543483,4.35861665,83.87,83.85,0.9347966]
[1773059543677,0.85037182,83.875,83.85,0.9347966]
[1773059545172,0.85037182,83.873,83.85,0.9347966]
[1773059545791,4.36977692,83.87,83.85,0.1]
[1773059545997,0.85037182,83.869,83.85,0.1]
[1773059546874,0.85037182,83.869,83.814,0.28432314]
[1773059546875,0.85037182,83.849,83.817,11.93067081]
[1773059547074,0.85037182,83.837,83.81,0.1]
[1773059547783,4.36977692,83.84,83.81,4.46977692]
[1773059547979,0.85037182,83.857,83.82,4.36977692]
[1773059548817,0.85037182,83.857,83.821,0.8347966]
[1773059549175,0.85037182,83.855,83.823,0.8347966]
[1773059549377,0.85037182,83.849,83.823,0.8347966]
[1773059549986,0.85037182,83.849,83.817,11.93063649]
[1773059550185,0.85037182,83.849,83.815,0.8347966]
[1773059550186,0.85037182,83.839,83.811,11.93155256]
[1773059550376,0.85037182,83.839,83.812,0.8347966]
[1773059551396,0.85037182,83.837,83.812,0.8347966]
[1773059552193,0.85037182,83.837,83.811,11.93155256]
[1773059552194,0.85037182,83.837,83.81,0.1]
[1773059552386,0.85037182,83.829,83.81,0.1]
[1773059554773,0.85334598,83.839,83.81,0.97117862]
[1773059554988,0.85334598,83.838,83.81,0.97117862]
[1773059555993,4.36977692,83.83,83.81,0.97117862]
[1773059556900,12.78239201,83.829,83.81,0.97117862]
[1773059558293,0.85334598,83.828,83.81,0.1]
[1773059558491,11.92904603,83.829,83.806,11.93231988]
[1773059558802,11.92904603,83.829,83.807,0.87117862]
[1773059559206,11.92904603,83.829,83.806,11.93231988]
[1773059559207,4.36977692,83.85,83.821,0.87117862]
[1773059559393,0.85334598,83.849,83.821,0.87117862]
[1773059561302,0.85334598,83.847,83.822,0.87117862]
[1773059561600,0.85334598,83.839,83.815,0.87117862]
[1773059561899,0.85334598,83.839,83.808,0.87117862]
[1773059563402,0.85334598,83.837,83.81,0.87117862]
[1773059563795,0.85334598,83.837,83.81,5.24095554]
[1773059564000,0.85334598,83.837,83.811,0.87117862]
[1773059564307,4.36977692,83.85,83.821,0.87117862]
[1773059564613,11.92620067,83.849,83.821,0.87117862]
[1773059564787,11.92620067,83.849,83.809,11.93189275]
[1773059564788,4.36977692,83.83,83.809,11.93189275]
[1773059565102,0.85334598,83.831,83.809,12.80307137]
[1773059565292,0.85334598,83.838,83.811,0.87117862]
[1773059565494,0.85334598,83.848,83.82,4.36977692]
[1773059565688,0.85334598,83.848,83.821,0.87117862]
[1773059565887,3.69383402,83.87,83.812,11.93146566]
[1773059565888,0.85334598,83.862,83.831,0.87117862]
[1773059566682,11.92349883,83.868,83.841,0.87117862]
[1773059567089,0.85334598,83.867,83.841,0.87117862]
[1773059567600,12.77712915,83.866,83.841,0.87117862]
[1773059567805,11.92319015,83.871,83.843,0.87117862]
[1773059568006,4.36977692,83.87,83.843,0.87117862]
[1773059568198,11.92319015,83.871,83.843,0.87117862]
[1773059568794,11.92319015,83.871,83.844,11.92691188]
[1773059569001,11.92319015,83.871,83.845,0.81666149]
[1773059569310,0.82757914,83.87,83.845,0.81666149]
[1773059571293,4.36977692,83.88,83.836,29.82002832]
[1773059571294,0.82757914,83.877,83.85,4.36977692]
[1773059571507,0.82757914,83.877,83.846,11.92662738]
[1773059571815,0.82757914,83.869,83.844,0.81666149]
[1773059572000,0.82757914,83.869,83.845,0.81666149]
[1773059572702,0.82757914,83.879,83.845,0.81666149]
[1773059573391,0.82757914,83.879,83.844,41.74406208]
[1773059573392,11.9220773,83.878,83.851,0.81666149]
[1773059574398,12.74965644,83.878,83.851,0.81666149]
[1773059575511,0.82757914,83.877,83.851,0.81666149]
[1773059577216,12.74994072,83.876,83.853,0.81666149]
[1773059580498,12.74994072,83.876,83.838,0.81666149]
[1773059580499,0.82757914,83.869,83.838,0.81666149]
[1773059581020,11.92181919,83.88,83.851,0.81666149]
[1773059581406,12.74939833,83.88,83.851,0.81666149]
[1773059581998,0.82757914,83.879,83.851,0.81666149]
[1773059582518,12.74965644,83.878,83.851,0.81666149]
[1773059583103,0.82757914,83.877,83.851,0.81666149]
[1773059583508,0.82898701,83.869,83.837,0.88324792]
[1773059583708,0.82898701,83.869,83.838,11.92776545]
[1773059583909,0.82898701,83.869,83.839,0.88324792]
[1773059585716,0.82898701,83.867,83.841,0.88324792]
[1773059588324,0.82898701,83.865,83.836,11.92797347]
[1773059588619,0.82898701,83.865,83.833,0.88324792]
[1773059589922,0.82898701,83.863,83.835,0.88324792]
[1773059591321,0.82898701,83.859,83.828,0.88324792]
[1773059591513,0.82898701,83.859,83.822,0.88324792]
[1773059591909,0.82898701,83.857,83.831,0.88324792]
[1773059592215,0.82898701,83.869,83.841,0.88324792]
[1773059593912,0.14216157,83.892,83.853,0.88324792]
[1773059593913,0.82898701,83.878,83.853,0.88324792]
[1773059594107,11.92221944,83.877,83.853,0.88324792]
[1773059594508,0.82898701,83.878,83.853,0.88324792]
[1773059595117,11.92221944,83.877,83.853,0.88324792]
[1773059595426,0.82898701,83.876,83.853,0.88324792]
[1773059596824,29.80503031,83.879,83.846,11.92654926]
[1773059596825,0.82898701,83.874,83.846,11.92654926]
[1773059597512,0.82898701,83.874,83.847,0.88324792]
[1773059597920,0.82898701,83.872,83.848,12.80959082]
[1773059599927,0.82898701,83.87,83.848,11.9263429]
[1773059600136,0.82898701,83.87,83.849,0.88324792]
[1773059600428,0.82898701,83.87,83.844,0.88324792]
[1773059600632,0.82898701,83.869,83.844,0.88324792]
[1773059603528,0.82898701,83.867,83.844,0.88324792]
[1773059605138,0.82898701,83.867,83.814,0.28432314]
[1773059605139,0.82898701,83.867,83.831,0.88324792]
[1773059605332,0.82898701,83.859,83.831,0.88324792]
[1773059605529,0.82898701,83.857,83.832,0.88324792]
[1773059606138,0.82898701,83.87,83.841,0.88324792]
[1773059607944,0.82898701,83.866,83.839,0.88324792]
[1773059608932,0.82898701,83.866,83.841,0.88324792]
[1773059609930,0.82898701,83.864,83.841,0.88324792]
[1773059612037,11.92420972,83.863,83.841,0.88324792]
[1773059612235,0.82898701,83.862,83.831,0.88324792]
[1773059614144,0.85584657,83.86,83.831,0.88324792]
[1773059616330,0.85584657,83.858,83.831,0.88324792]
[1773059617955,0.85584657,83.858,83.804,0.28432314]
[1773059617956,0.85584657,83.858,83.82,4.37009767]
[1773059618331,0.85584657,83.858,83.779,103.3]
[1773059618332,0.85584657,83.849,83.771,103.3]
[1773059618547,101.36303468,83.857,83.8,4.37009767]
[1773059618548,0.85584657,83.839,83.8,4.37009767]
[1773059618738,0.85584657,83.839,83.755,13.07500482]
[1773059618739,4.37009767,83.81,83.769,11.93746158]
[1773059619046,0.85584657,83.819,83.771,11.93730527]
[1773059619240,0.85584657,83.809,83.78,4.37009767]
[1773059619434,0.85584657,83.809,83.77,4.47009767]
[1773059619854,0.85584657,83.809,83.771,0.86732449]
[1773059620354,4.37009767,83.81,83.771,0.86732449]
[1773059620355,0.85584657,83.807,83.771,0.86732449]
[1773059621062,0.85584657,83.807,83.77,0.1]
[1773059621063,0.85590252,83.799,83.77,0.1]
[1773059621355,0.85590252,83.799,83.77,4.47009767]
[1773059621938,0.85590252,83.805,83.78,4.37009767]
[1773059622251,0.85590252,83.799,83.77,0.1]
[1773059622452,0.85590252,83.797,83.77,0.1]
[1773059623762,0.85590252,83.795,83.77,4.47009767]
[1773059624759,0.85590252,83.795,83.77,0.1]
[1773059625363,0.85590252,83.795,83.77,4.47009767]
[1773059626039,0.85590252,83.793,83.77,0.1]
[1773059627454,0.85590252,83.789,83.77,0.1]
[1773059629957,4.37009767,83.79,83.77,0.1]
[1773059629958,0.85590252,83.787,83.77,0.1]
[1773059631444,11.93516816,83.786,83.77,0.1]
[1773059631642,0.85590252,83.785,83.77,0.1]
[1773059632154,0.85590252,83.785,83.741,0.28432314]
[1773059632354,0.85590252,83.785,83.751,0.28432314]
[1773059633351,11.93516816,83.786,83.76,4.37009767]
[1773059633556,0.85590252,83.793,83.77,4.37009767]
[1773059633557,11.93466679,83.79,83.77,4.37009767]
[1773059635558,11.93466679,83.79,83.76,11.93879962]
[1773059635870,11.93466679,83.79,83.77,4.37009767]
[1773059638902,11.93345903,83.798,83.77,4.37009767]
[1773059639673,12.78936155,83.798,83.77,4.37009767]
[1773059640374,12.78936155,83.798,83.78,4.37009767]
[1773059640375,11.93345903,83.798,83.78,4.37009767]
[1773059641161,12.78936155,83.798,83.78,4.37009767]
[1773059642156,11.93345903,83.798,83.78,4.37009767]
[1773059643274,0.85590252,83.802,83.78,4.37009767]
[1773059645376,0.85590252,83.8,83.77,4.37009767]
[1773059646462,11.93331662,83.799,83.77,4.37009767]
[1773059646660,0.85590252,83.798,83.77,4.37009767]
[1773059648882,41.76760504,83.797,83.76,4.37009767]
[1773059649181,0.85590252,83.779,83.75,4.37009767]
[1773059649484,0.85590252,83.779,83.741,0.28432314]
[1773059649662,0.85590252,83.769,83.74,4.37009767]
[1773059649862,0.85590252,83.769,83.731,0.28432314]
[1773059651068,0.85590252,83.767,83.74,4.37009767]
[1773059652778,0.85590252,83.779,83.75,4.37009767]
[1773059653186,0.85590252,83.778,83.75,4.37009767]
[1773059653384,0.85590252,83.778,83.751,11.94015593]
[1773059654690,0.85590252,83.778,83.75,4.37009767]
[1773059655683,0.85590252,83.776,83.75,4.37009767]
[1773059658382,0.85590252,83.774,83.741,0.28432314]
[1773059658872,11.9367353,83.775,83.731,0.28432314]
[1773059658873,0.85590252,83.769,83.731,0.28432314]
[1773059659073,0.85590252,83.769,83.73,4.37009767]
[1773059659268,0.85590252,83.759,83.73,4.37009767]
[1773059659680,0.85590252,83.769,83.74,4.37009767]
[1773059660481,0.85590252,83.767,83.741,11.94158178]
[1773059661492,0.85590252,83.767,83.74,4.37009767]
[1773059661994,0.85590252,83.767,83.731,12.2273311]
[1773059662780,41.78306233,83.766,83.731,11.94300796]
[1773059662983,0.85590252,83.765,83.731,11.94300796]
[1773059663488,0.85590252,83.765,83.74,4.37009767]
[1773059665795,0.85590252,83.763,83.74,4.38077977]
[1773059666098,0.85590252,83.763,83.733,11.9427227]
[1773059666992,0.85590252,83.763,83.731,0.28432314]
[1773059667383,0.85590252,83.763,83.732,11.94275492]
[1773059668177,0.85590252,83.761,83.74,4.38077977]
[1773059669291,11.93814953,83.766,83.741,11.94158178]
[1773059669694,11.93814953,83.766,83.75,4.38077977]
[1773059669877,11.93814953,83.766,83.741,11.94158178]
[1773059670196,0.85590252,83.765,83.741,11.94158178]
[1773059671592,0.85590252,83.788,83.76,4.38077977]
[1773059671795,0.85590252,83.788,83.77,4.38077977]
[1773059672095,0.85590252,83.788,83.76,4.38077977]
[1773059673083,0.85590252,83.788,83.742,0.28432314]
[1773059673285,0.85590252,83.788,83.76,4.38077977]
[1773059673492,0.85590252,83.786,83.76,4.38077977]
[1773059675804,0.85590252,83.784,83.75,4.38077977]
[1773059676181,4.38077977,83.78,83.734,0.28432314]
[1773059676425,4.38077977,83.78,83.74,4.38077977]
[1773059676426,0.85590252,83.779,83.74,4.38077977]
[1773059677801,0.85590252,83.777,83.74,16.3224511]
[1773059679697,0.85590252,83.777,83.74,11.94167133]
[1773059679912,0.85590252,83.777,83.74,16.3224511]
[1773059680396,0.85590252,83.775,83.75,4.38077977]
[1773059681297,0.85590252,83.775,83.726,29.85930296]
[1773059681298,11.93659281,83.776,83.76,4.38077977]
[1773059681795,12.79249533,83.776,83.76,4.38077977]
[1773059681999,0.85590252,83.775,83.76,4.38077977]
[1773059682195,0.85590252,83.787,83.76,4.38077977]
[1773059682391,0.85590252,83.787,83.77,4.38077977]
[1773059682587,0.85590252,83.785,83.763,11.93844024]
[1773059682999,0.85590252,83.785,83.76,4.38077977]
[1773059683207,0.85590252,83.785,83.75,4.38077977]
[1773059683501,0.85590252,83.785,83.75,16.32101131]
[1773059686695,0.85590252,83.783,83.736,0.28432314]
[1773059686897,0.85590252,83.783,83.75,4.38077977]
[1773059687202,0.85590252,83.783,83.76,4.38077977]
[1773059691107,0.85590252,83.781,83.75,4.38077977]
[1773059693410,0.85590252,83.779,83.76,4.38077977]
[1773059694613,0.85590252,83.785,83.76,4.38077977]
[1773059695910,0.85590252,83.783,83.761,11.93873043]
[1773059696303,0.85590252,83.783,83.754,29.84906231]
[1773059696304,0.85590252,83.783,83.757,11.93916032]
[1773059696696,0.85590252,83.783,83.76,4.38077977]
[1773059697800,0.85590252,83.781,83.761,11.93873043]
[1773059699902,11.93602291,83.78,83.761,11.93873043]
[1773059700103,0.85590252,83.779,83.761,11.93873043]
[1773059701306,3.69383402,83.804,83.761,11.93873043]
[1773059701307,12.78921914,83.799,83.77,4.38077977]
[1773059701515,12.78921914,83.799,83.761,41.78555651]
[1773059701516,0.85590252,83.799,83.78,4.38077977]
[1773059701704,0.85590252,83.806,83.78,4.38077977]